[Event "3rd Vergani Cup 2018"]
[Site "Montebelluna"]
[Date "2019.01.02"]
[Round "?"]
[White "Sonis, Francesco"]
[Black "Naumkin, Igor"]
[Result "0-1"]
[WhiteElo "2485"]
[BlackElo "2410"]
[Annotator "RC"]
[PlyCount "100"]
[EventDate "2018.12.27"]
[EventType "swiss"]
[EventCountry "ITA"]
[TimeControl "5400+30"]
[WhiteClock "0:02:02"]
[BlackClock "0:07:01"]

1. Nf3 {[%emt 0:03:04]} Nf6 {[%emt 0:05:38]} 2. c4 {[%emt 0:00:11]} e6 {[%emt 0:00:08]} 3. d4 {[%emt 0:00:06]} b6 {[%emt 0:00:05]} 4. g3 {[%emt 0:00:03]} Bb7 {[%emt 0:00:05]} 5. Bg2 {[%emt 0:00:03]} Be7 {[%emt 0:00:11]} 6. O-O {[%emt 0:00:05]} O-O {[%emt 0:00:03]} 7. Re1 {[%emt 0:00:03]} d5 {[%emt 0:00:29]} 8. cxd5 {[%emt 0:00:04]} exd5 {[%emt 0:00:06]} 9. Nc3 {[%emt 0:00:04]} Na6 {[%emt 0:01:27]} 10. Bf4 {[%emt 0:00:05]} c5 {[%emt 0:00:28]} 11. Rc1 {[%emt 0:00:03]} Re8 {[%emt 0:01:13]} 12. dxc5 {[%emt 0:07:06]} Nxc5 {[%emt 0:02:17]} 13. Nd4 {[%emt 0:02:01]} Qd7 {[%emt 0:06:42]} 14. Ncb5 {[%emt 0:05:58]} Nh5 {[%emt 0:05:40]} 15. Be3 {[%emt 0:10:41]} a5 {[%emt 0:06:30]} 16. Nc3 {[%emt 0:05:54]} h6 {[%emt 0:08:20]} 17. Qc2 {[%emt 0:05:30]} Nf6 {[%emt 0:03:16]} 18. Nf5 {[%emt 0:06:33]} Bf8 {[%emt 0:02:10]} 19. Bd4 {[%emt 0:01:02]} Nfe4 {[%emt 0:02:32]} 20. Ne3 {[%emt 0:03:13]} Rad8 {[%emt 0:13:55]} 21. Red1 {[%emt 0:00:38]} Qe6 {[%emt 0:00:24]} 22. Na4 {[%emt 0:06:52]} Rc8 {[%emt 0:03:01]} 23. Nc3 {[%emt 0:02:30]} Rcd8 {[%emt 0:00:48]} 24. a3 {[%emt 0:01:13]} h5 {[%emt 0:08:21]} 25. b4 {[%emt 0:11:53]} axb4 {[%emt 0:01:58]} 26. axb4 {[%emt 0:00:02]} Na6 {[%emt 0:02:00]} 27. b5 {[%emt 0:00:20]} Nac5 {[%emt 0:00:26]} 28. Ra1 {[%emt 0:00:14]} h4 {[%emt 0:04:25]} 29. Ra7 {[%emt 0:03:49]} hxg3 {[%emt 0:02:54]} 30. hxg3 {[%emt 0:00:08]} Qc8 {[%emt 0:02:51]} 31. Rc1 {[%emt 0:04:12]} Qb8 {[%emt 0:04:35]} 32. Qa2 {[%emt 0:03:30]} Ne6 {[%emt 0:03:57]} 33. Bxb6 {[%emt 0:09:35]} Rc8 {[%emt 0:01:04]} 34. Rxb7 {[%emt 0:01:15]} Qxb7 {[%emt 0:00:49]} 35. Nexd5 {[%emt 0:00:52]} Rxc3 {[%emt 0:03:51]} 36. Nxc3 {[%emt 0:01:41]} Nxc3 {[%emt 0:00:19]} 37. Rxc3 {[%emt 0:00:33]} Qxb6 {[%emt 0:00:18]} 38. Bc6 {[%emt 0:00:04]} Rd8 {[%emt 0:01:53]} 39. Kg2 {[%emt 0:00:03]} Nd4 {[%emt 0:01:22]} 40. Qc4 {[%emt 0:00:11]} Rc8 {[%emt 0:00:41]} 41. e4 {[%emt 0:03:59]} Nxb5 {[%emt 0:00:56]} 42. Bxb5 {[%emt 0:00:03]} Rxc4 {[%emt 0:00:23]} 43. Bxc4 {[%emt 0:00:01]} Qd4 {[%emt 0:00:33]} 44. Rc1 {[%emt 0:00:47]} Ba3 {[%emt 0:00:36]} 45. Bxf7+ {[%emt 0:00:59]} Kxf7 {[%emt 0:00:09]} 46. Re1 {[%emt 0:00:01]} Ke6 {[%emt 0:00:43]} 47. Re3 {[%emt 0:00:14]} Bc1 {[%emt 0:00:25]} 48. Re2 {[%emt 0:00:19]} Qd3 {[%emt 0:00:20]} 49. Kf1 {[%emt 0:00:09]} Bd2 {[%emt 0:00:55]} 50. e5 {[%emt 0:00:03]} Bc3 {[%emt 0:00:46]} 0-1

[Event "3rd Vergani Cup 2018"]
[Site "Montebelluna"]
[Date "2019.01.02"]
[Round "?"]
[White "Velten, Paul"]
[Black "Bernadskiy, Vitaliy"]
[Result "1/2-1/2"]
[WhiteElo "2485"]
[BlackElo "2547"]
[PlyCount "132"]
[EventDate "2018.12.27"]
[EventType "swiss"]
[EventCountry "ITA"]
[TimeControl "5400+30"]
[WhiteClock "0:31:57"]
[BlackClock "0:16:33"]

1. d4 {[%emt 0:10:31]} g6 {[%emt 0:00:00]} 2. c3 {[%emt 0:01:37]} d6 {[%emt 0:00:26]} 3. Bg5 {[%emt 0:00:48]} Bg7 {[%emt 0:00:58]} 4. Nd2 {[%emt 0:00:57]} h6 {[%emt 0:02:19]} 5. Bh4 {[%emt 0:00:32]} Nc6 {[%emt 0:05:34]} 6. e4 {[%emt 0:04:17]} Nf6 {[%emt 0:00:17]} 7. f4 {[%emt 0:00:54]} O-O {[%emt 0:03:44]} 8. Bxf6 {[%emt 0:03:02]} exf6 {[%emt 0:01:01]} 9. Qf3 {[%emt 0:04:19]} f5 {[%emt 0:01:54]} 10. Bd3 {[%emt 0:01:18]} fxe4 {[%emt 0:02:16]} 11. Bxe4 {[%emt 0:00:09]} Ne7 {[%emt 0:00:27]} 12. Ne2 {[%emt 0:04:32]} c5 {[%emt 0:01:23]} 13. dxc5 {[%emt 0:02:27]} dxc5 {[%emt 0:00:24]} 14. Nc4 {[%emt 0:04:09]} Be6 {[%emt 0:01:03]} 15. Rd1 {[%emt 0:00:21]} Qc7 {[%emt 0:00:03]} 16. Ne3 {[%emt 0:00:06]} f5 {[%emt 0:03:09]} 17. Bb1 {[%emt 0:09:20]} Rad8 {[%emt 0:01:51]} 18. O-O {[%emt 0:00:33]} Qc6 {[%emt 0:00:50]} 19. Qf2 {[%emt 0:01:25]} b5 {[%emt 0:00:40]} 20. h3 {[%emt 0:03:19]} Bc8 {[%emt 0:04:27]} 21. g4 {[%emt 0:02:38]} fxg4 {[%emt 0:01:10]} 22. hxg4 {[%emt 0:00:09]} Bb7 {[%emt 0:00:43]} 23. Ng3 {[%emt 0:00:18]} Rxd1 {[%emt 0:02:02]} 24. Rxd1 {[%emt 0:00:15]} Qc7 {[%emt 0:07:30]} 25. f5 {[%emt 0:01:41]} b4 {[%emt 0:02:29]} 26. Ne4 {[%emt 0:14:38]} bxc3 {[%emt 0:01:04]} 27. bxc3 {[%emt 0:00:34]} Bxe4 {[%emt 0:00:57]} 28. Bxe4 {[%emt 0:00:06]} Bxc3 {[%emt 0:00:06]} 29. Nd5 {[%emt 0:00:22]} Nxd5 {[%emt 0:00:53]} 30. Bxd5+ {[%emt 0:00:06]} Kh8 {[%emt 0:02:16]} 31. Qe3 {[%emt 0:06:32]} Qg7 {[%emt 0:01:12]} 32. Qxc5 {[%emt 0:00:06]} gxf5 {[%emt 0:00:18]} 33. Bg2 {[%emt 0:00:15]} Rg8 {[%emt 0:09:55]} 34. Qxf5 {[%emt 0:00:21]} Bd4+ {[%emt 0:00:32]} 35. Kh1 {[%emt 0:00:29]} Qxg4 {[%emt 0:00:35]} 36. Qxg4 {[%emt 0:00:04]} Rxg4 {[%emt 0:00:03]} 37. Bf3 {[%emt 0:01:19]} Rf4 {[%emt 0:00:46]} 38. Kg2 {[%emt 0:00:13]} Kg7 {[%emt 0:00:29]} 39. Re1 {[%emt 0:01:32]} Bb6 {[%emt 0:00:22]} 40. Re6 {[%emt 0:02:33]} Ra4 {[%emt 0:02:28]} 41. Bd5 {[%emt 0:00:31]} Rd4 {[%emt 0:00:11]} 42. Bb3 {[%emt 0:00:12]} h5 {[%emt 0:00:22]} 43. Kh3 {[%emt 0:00:46]} Bd8 {[%emt 0:02:49]} 44. Re5 {[%emt 0:00:33]} Rd3+ {[%emt 0:00:46]} 45. Kg2 {[%emt 0:00:12]} h4 {[%emt 0:00:06]} 46. Rd5 {[%emt 0:01:10]} Rg3+ {[%emt 0:00:04]} 47. Kh2 {[%emt 0:00:15]} Bb6 {[%emt 0:01:58]} 48. Rh5 {[%emt 0:03:52]} Bc7 {[%emt 0:00:10]} 49. Kh1 {[%emt 0:00:06]} Rg4 {[%emt 0:00:25]} 50. Rc5 {[%emt 0:01:01]} Bb6 {[%emt 0:00:38]} 51. Rc4 {[%emt 0:00:22]} Bd4 {[%emt 0:00:12]} 52. Kh2 {[%emt 0:00:55]} Kf6 {[%emt 0:00:19]} 53. Rc8 {[%emt 0:00:19]} Rg3 {[%emt 0:00:38]} 54. Rf8+ {[%emt 0:01:15]} Ke7 {[%emt 0:04:55]} 55. Rf7+ {[%emt 0:01:56]} Kd6 {[%emt 0:00:06]} 56. Rh7 {[%emt 0:00:22]} Be5 {[%emt 0:01:17]} 57. Kh1 {[%emt 0:00:12]} Rh3+ {[%emt 0:02:10]} 58. Kg2 {[%emt 0:00:33]} Rh2+ {[%emt 0:00:31]} 59. Kf3 {[%emt 0:00:13]} a5 {[%emt 0:00:46]} 60. Rh6+ {[%emt 0:00:45]} Kc5 {[%emt 0:01:53]} 61. Rh5 {[%emt 0:00:27]} Kd4 {[%emt 0:00:25]} 62. Kg4 {[%emt 0:00:15]} a4 {[%emt 0:01:21]} 63. Rxh4 {[%emt 0:01:13]} Rxh4+ {[%emt 0:00:18]} 64. Kxh4 {[%emt 0:00:05]} axb3 {[%emt 0:00:02]} 65. axb3 {[%emt 0:00:06]} Kc3 {[%emt 0:00:02]} 66. Kg4 {[%emt 0:00:04]} Kxb3 {[%emt 0:00:03]} 1/2-1/2

[Event "3rd Vergani Cup 2018"]
[Site "Montebelluna"]
[Date "2019.01.02"]
[Round "?"]
[White "Henderson de La Fuente, Lance"]
[Black "Ter-Sahakyan, Samvel"]
[Result "1/2-1/2"]
[WhiteElo "2484"]
[BlackElo "2574"]
[PlyCount "68"]
[EventDate "2018.12.27"]
[EventType "swiss"]
[EventCountry "ITA"]
[TimeControl "5400+30"]

1. e4 {[%emt 0:00:00]} c5 {[%emt 0:00:00]} 2. Nf3 {[%emt 0:00:04]} d6 {[%emt 0:00:05]} 3. d4 {[%emt 0:00:42]} cxd4 {[%emt 0:00:06]} 4. Nxd4 {[%emt 0:00:32]} Nf6 {[%emt 0:00:06]} 5. Nc3 {[%emt 0:00:05]} a6 {[%emt 0:00:06]} 6. h3 {[%emt 0:00:10]} g6 {[%emt 0:01:34]} 7. g4 {[%emt 0:00:50]} Nc6 {[%emt 0:00:08]} 8. Be3 {[%emt 0:00:56]} Nxd4 {[%emt 0:00:13]} 9. Bxd4 {[%emt 0:01:30]} Bh6 {[%emt 0:00:09]} 10. Bxf6 {[%emt 0:13:10]} exf6 {[%emt 0:00:17]} 11. Bc4 {[%emt 0:00:19]} O-O {[%emt 0:06:19]} 12. Qf3 {[%emt 0:03:25]} b5 {[%emt 0:22:04]} 13. Bb3 {[%emt 0:04:19]} Rb8 {[%emt 0:15:24]} 14. Nd5 {[%emt 0:01:00]} Kg7 {[%emt 0:08:23]} 15. Kf1 {[%emt 0:06:45]} a5 {[%emt 0:00:45]} 16. a4 {[%emt 0:02:49]} bxa4 {[%emt 0:01:59]} 17. Rxa4 {[%emt 1:01:54]} Be6 {[%emt 0:01:54]} 18. Rxa5 {[%emt 0:00:00]} Bc1 {[%emt 0:03:16]} 19. Ra2 {[%emt 0:00:00]} Bxd5 {[%emt 0:02:11]} 20. exd5 {[%emt 0:00:00]} Ra8 {[%emt 0:03:48]} 21. Qc3 {[%emt 0:00:00]} Rxa2 {[%emt 0:02:49]} 22. Bxa2 {[%emt 0:00:00]} Qa8 {[%emt 0:00:21]} 23. Bc4 {[%emt 0:00:00]} Qa1 {[%emt 0:01:33]} 24. Ke2 {[%emt 0:00:00]} Qxb2 {[%emt 0:01:12]} 25. Qxb2 {[%emt 0:00:00]} Bxb2 {[%emt 0:00:04]} 26. Rb1 {[%emt 0:00:00]} Bd4 {[%emt 0:00:07]} 27. Rb7 {[%emt 0:00:00]} Kh6 {[%emt 0:01:19]} 28. Bb5 {[%emt 0:00:00]} Kg5 {[%emt 0:00:41]} 29. Kf3 {[%emt 0:00:00]} Kh6 {[%emt 0:13:41]} 30. Bc6 {[%emt 0:00:00]} Kg7 {[%emt 0:00:38]} 31. Kg3 {[%emt 0:00:00]} Bc5 {[%emt 0:00:27]} 32. Kf3 {[%emt 0:00:00]} Kh6 {[%emt 0:01:32]} 33. Re7 {[%emt 0:00:00]} Kg7 {[%emt 0:00:23]} 34. Ke2 {[%emt 0:08:30]} Bd4 {[%emt 0:13:26]} 1/2-1/2

[Event "3rd Vergani Cup 2018"]
[Site "Montebelluna"]
[Date "2019.01.02"]
[Round "?"]
[White "Menezes, Christoph"]
[Black "Basso, Pier Luigi"]
[Result "1/2-1/2"]
[WhiteElo "2415"]
[BlackElo "2542"]
[PlyCount "40"]
[EventDate "2018.12.27"]
[EventType "swiss"]
[EventCountry "ITA"]
[TimeControl "5400+30"]
[WhiteClock "1:14:20"]
[BlackClock "1:07:50"]

1. Nf3 {[%emt 0:00:00]} d5 {[%emt 0:00:16]} 2. g3 {[%emt 0:00:00]} c6 {[%emt 0:00:54]} 3. Bg2 {[%emt 0:00:09]} Bg4 {[%emt 0:00:07]} 4. O-O {[%emt 0:00:29]} e6 {[%emt 0:00:07]} 5. h3 {[%emt 0:00:38]} Bh5 {[%emt 0:00:07]} 6. d4 {[%emt 0:00:42]} Nf6 {[%emt 0:00:09]} 7. c4 {[%emt 0:00:21]} Nbd7 {[%emt 0:00:42]} 8. cxd5 {[%emt 0:00:27]} exd5 {[%emt 0:00:25]} 9. Qb3 {[%emt 0:00:17]} Qb6 {[%emt 0:03:17]} 10. Qe3+ {[%emt 0:00:13]} Be7 {[%emt 0:04:04]} 11. Nh4 {[%emt 0:00:26]} Bg6 {[%emt 0:00:58]} 12. Nc3 {[%emt 0:00:30]} Qd8 {[%emt 0:05:29]} 13. b4 {[%emt 0:00:19]} O-O {[%emt 0:01:03]} 14. Nxg6 {[%emt 0:00:22]} hxg6 {[%emt 0:00:04]} 15. b5 {[%emt 0:00:28]} Re8 {[%emt 0:02:24]} 16. Qd3 {[%emt 0:01:14]} Nf8 {[%emt 0:02:43]} 17. Rb1 {[%emt 0:04:31]} Ne6 {[%emt 0:00:43]} 18. bxc6 {[%emt 0:09:29]} bxc6 {[%emt 0:00:07]} 19. Rd1 {[%emt 0:02:41]} Rb8 {[%emt 0:01:51]} 20. Rxb8 {[%emt 0:08:54]} Qxb8 {[%emt 0:00:10]} 1/2-1/2

[Event "3rd Vergani Cup 2018"]
[Site "Montebelluna"]
[Date "2019.01.02"]
[Round "?"]
[White "Kaasen, Tor Fredrik"]
[Black "Seresin, Francesco"]
[Result "0-1"]
[WhiteElo "2409"]
[BlackElo "2258"]
[PlyCount "86"]
[EventDate "2018.12.27"]
[EventType "swiss"]
[EventCountry "ITA"]
[TimeControl "5400+30"]
[WhiteClock "0:01:03"]
[BlackClock "0:00:32"]

1. e4 {[%emt 0:00:00]} c5 {[%emt 0:00:29]} 2. Nf3 {[%emt 0:00:00]} d6 {[%emt 0:00:28]} 3. Bb5+ {[%emt 1:31:30]} Nd7 {[%emt 0:00:27]} 4. O-O {[%emt 0:00:00]} a6 {[%emt 0:00:29]} 5. Bd3 {[%emt 0:00:00]} Ngf6 {[%emt 0:00:46]} 6. Re1 {[%emt 0:00:00]} e6 {[%emt 0:01:07]} 7. c3 {[%emt 0:00:00]} Be7 {[%emt 0:00:31]} 8. Bc2 {[%emt 0:00:00]} b5 {[%emt 0:01:20]} 9. d4 {[%emt 0:00:00]} Bb7 {[%emt 0:00:46]} 10. Bf4 {[%emt 0:00:00]} O-O {[%emt 0:06:31]} 11. h3 {[%emt 0:00:00]} Re8 {[%emt 0:04:23]} 12. Bg3 {[%emt 0:00:00]} Rc8 {[%emt 0:11:24]} 13. Nbd2 {[%emt 0:00:00]} cxd4 {[%emt 0:11:37]} 14. cxd4 {[%emt 0:00:00]} Qb6 {[%emt 0:00:31]} 15. Bd3 {[%emt 0:00:00]} e5 {[%emt 0:11:09]} 16. Nb3 {[%emt 0:00:00]} Bf8 {[%emt 0:06:49]} 17. dxe5 {[%emt 0:00:00]} dxe5 {[%emt 0:02:23]} 18. Qe2 {[%emt 0:00:00]} Nh5 {[%emt 0:04:51]} 19. Bh2 {[%emt 0:00:00]} g6 {[%emt 0:06:01]} 20. Rad1 {[%emt 0:00:00]} Rc7 {[%emt 0:03:15]} 21. Qd2 {[%emt 0:00:00]} f6 {[%emt 0:00:50]} 22. Rc1 {[%emt 0:00:00]} Rec8 {[%emt 0:02:14]} 23. Rxc7 {[%emt 0:00:00]} Rxc7 {[%emt 0:00:06]} 24. Rc1 {[%emt 0:00:00]} Ng7 {[%emt 0:00:39]} 25. Rxc7 {[%emt 0:01:18]} Qxc7 {[%emt 0:00:05]} 26. Qc2 {[%emt 0:04:51]} Qb6 {[%emt 0:07:50]} 27. Nfd2 {[%emt 0:01:52]} Ne6 {[%emt 0:00:29]} 28. Kf1 {[%emt 0:00:44]} a5 {[%emt 0:01:02]} 29. f3 {[%emt 0:02:00]} a4 {[%emt 0:01:13]} 30. Nc1 {[%emt 0:00:06]} Bc5 {[%emt 0:07:34]} 31. Ne2 {[%emt 0:00:52]} Kg7 {[%emt 0:01:14]} 32. Nb1 {[%emt 0:01:01]} Nd4 {[%emt 0:04:21]} 33. Nxd4 {[%emt 0:00:26]} Bxd4 {[%emt 0:00:04]} 34. Nc3 {[%emt 0:00:27]} Nc5 {[%emt 0:01:06]} 35. Be2 {[%emt 0:01:45]} Bc6 {[%emt 0:01:57]} 36. Bg3 {[%emt 0:00:06]} b4 {[%emt 0:00:39]} 37. Nd1 {[%emt 0:00:41]} b3 {[%emt 0:00:45]} 38. axb3 {[%emt 0:00:04]} Qxb3 {[%emt 0:00:25]} 39. Qxb3 {[%emt 0:00:34]} Nxb3 {[%emt 0:00:37]} 40. Be1 {[%emt 0:00:43]} f5 {[%emt 0:00:44]} 41. exf5 {[%emt 0:00:30]} gxf5 {[%emt 0:00:08]} 42. Bc4 {[%emt 0:00:52]} Kf6 {[%emt 0:01:06]} 43. Bxb3 {[%emt 0:00:36]} Bb5+ {[%emt 0:00:02]} 0-1

[Event "3rd Vergani Cup 2018"]
[Site "Montebelluna"]
[Date "2019.01.02"]
[Round "?"]
[White "Baglan, Esat"]
[Black "Orfini, Nicolo`"]
[Result "1-0"]
[WhiteElo "2363"]
[BlackElo "2156"]
[PlyCount "97"]
[EventDate "2018.12.27"]
[EventType "swiss"]
[EventCountry "ITA"]
[TimeControl "5400+30"]
[WhiteClock "0:01:59"]
[BlackClock "0:02:12"]

1. e4 {[%emt 0:00:00]} d6 {[%emt 0:09:02]} 2. d4 {[%emt 0:00:00]} Nf6 {[%emt 0:00:05]} 3. Nc3 {[%emt 0:00:00]} e5 {[%emt 0:00:05]} 4. Nf3 {[%emt 0:00:00]} exd4 {[%emt 0:00:09]} 5. Nxd4 {[%emt 0:00:42]} Be7 {[%emt 0:00:06]} 6. Bf4 {[%emt 0:00:15]} O-O {[%emt 0:16:26]} 7. Qd2 {[%emt 0:01:18]} c6 {[%emt 0:01:09]} 8. O-O-O {[%emt 0:01:21]} b5 {[%emt 0:04:27]} 9. f3 {[%emt 0:01:31]} b4 {[%emt 0:02:23]} 10. Nce2 {[%emt 0:02:02]} c5 {[%emt 0:26:43]} 11. Nf5 {[%emt 0:07:30]} Bxf5 {[%emt 0:02:11]} 12. exf5 {[%emt 0:02:31]} Qa5 {[%emt 0:00:39]} 13. Kb1 {[%emt 0:08:25]} c4 {[%emt 0:05:57]} 14. Nd4 {[%emt 0:28:56]} Rc8 {[%emt 0:00:45]} 15. Qe1 {[%emt 0:05:36]} Nd5 {[%emt 0:05:27]} 16. Qe4 {[%emt 0:08:39]} Nd7 {[%emt 0:01:47]} 17. Nc6 {[%emt 0:06:16]} Rxc6 {[%emt 0:00:07]} 18. Rxd5 {[%emt 0:04:41]} Qd8 {[%emt 0:00:03]} 19. Rd4 {[%emt 0:00:30]} Rac8 {[%emt 0:15:12]} 20. Rxc4 {[%emt 0:16:40]} Nc5 {[%emt 0:00:21]} 21. Qd5 {[%emt 0:00:25]} a5 {[%emt 0:02:33]} 22. Be2 {[%emt 0:00:25]} Bf6 {[%emt 0:01:00]} 23. Bc1 {[%emt 0:00:33]} Qe8 {[%emt 0:01:37]} 24. Bd3 {[%emt 0:00:25]} Rb6 {[%emt 0:01:02]} 25. g4 {[%emt 0:00:11]} h6 {[%emt 0:00:46]} 26. h4 {[%emt 0:00:23]} Qe5 {[%emt 0:01:26]} 27. Qxe5 {[%emt 0:00:49]} Bxe5 {[%emt 0:01:04]} 28. Be4 {[%emt 0:00:17]} Bg3 {[%emt 0:00:45]} 29. g5 {[%emt 0:01:00]} h5 {[%emt 0:00:12]} 30. Bd5 {[%emt 0:00:20]} Kf8 {[%emt 0:00:24]} 31. Rg1 {[%emt 0:01:19]} Bf2 {[%emt 0:00:15]} 32. Rg2 {[%emt 0:00:08]} Be1 {[%emt 0:00:08]} 33. Re2 {[%emt 0:00:17]} Re8 {[%emt 0:00:35]} 34. Rxe8+ {[%emt 0:00:24]} Kxe8 {[%emt 0:00:01]} 35. Be3 {[%emt 0:00:07]} Bg3 {[%emt 0:00:44]} 36. Bd4 {[%emt 0:01:38]} g6 {[%emt 0:00:14]} 37. f6 {[%emt 0:01:04]} Rb8 {[%emt 0:00:43]} 38. c3 {[%emt 0:01:12]} bxc3 {[%emt 0:01:32]} 39. Bxc3 {[%emt 0:00:10]} a4 {[%emt 0:00:25]} 40. Kc2 {[%emt 0:00:08]} Kf8 {[%emt 0:00:22]} 41. Bd4 {[%emt 0:00:40]} Na6 {[%emt 0:00:59]} 42. a3 {[%emt 0:00:20]} Nc5 {[%emt 0:00:05]} 43. Rb4 {[%emt 0:01:39]} Rc8 {[%emt 0:00:28]} 44. Kb1 {[%emt 0:00:25]} Nd3 {[%emt 0:00:50]} 45. Rb7 {[%emt 0:00:13]} Rc1+ {[%emt 0:00:17]} 46. Ka2 {[%emt 0:00:01]} Rc8 {[%emt 0:00:24]} 47. Rxf7+ {[%emt 0:00:07]} Ke8 {[%emt 0:00:06]} 48. Re7+ {[%emt 0:00:31]} Kf8 {[%emt 0:00:00]} 49. Rg7 {[%emt 0:00:14]} 1-0

[Event "3rd Vergani Cup 2018"]
[Site "Montebelluna"]
[Date "2019.01.02"]
[Round "?"]
[White "Baglan, Esat"]
[Black "Velten, Paul"]
[Result "0-1"]
[WhiteElo "2363"]
[BlackElo "2485"]
[PlyCount "82"]
[EventDate "2018.12.27"]
[EventType "swiss"]
[EventCountry "ITA"]
[TimeControl "5400+30"]
[WhiteClock "0:50:20"]
[BlackClock "0:01:00"]

1. e4 {[%emt 0:04:30]} e6 {[%emt 0:00:00]} 2. d4 {[%emt 0:00:17]} d5 {[%emt 0:00:19]} 3. Nd2 {[%emt 0:00:08]} Nf6 {[%emt 0:02:30]} 4. e5 {[%emt 0:00:07]} Nfd7 {[%emt 0:00:23]} 5. Bd3 {[%emt 0:00:15]} c5 {[%emt 0:00:10]} 6. c3 {[%emt 0:00:05]} Nc6 {[%emt 0:00:07]} 7. Ne2 {[%emt 0:00:11]} cxd4 {[%emt 0:00:19]} 8. cxd4 {[%emt 0:00:07]} f6 {[%emt 0:00:07]} 9. exf6 {[%emt 0:00:14]} Nxf6 {[%emt 0:00:11]} 10. O-O {[%emt 0:00:19]} Bd6 {[%emt 0:00:08]} 11. Nf3 {[%emt 0:00:08]} O-O {[%emt 0:00:32]} 12. Bf4 {[%emt 0:03:35]} Nh5 {[%emt 0:00:26]} 13. Bxd6 {[%emt 0:15:53]} Qxd6 {[%emt 0:00:14]} 14. Qd2 {[%emt 0:00:06]} Bd7 {[%emt 0:03:29]} 15. Qe3 {[%emt 0:04:27]} Nb4 {[%emt 0:07:51]} 16. Ne5 {[%emt 0:03:36]} Nxd3 {[%emt 0:01:32]} 17. Qxd3 {[%emt 0:01:48]} a6 {[%emt 0:00:22]} 18. a4 {[%emt 0:04:24]} Rac8 {[%emt 0:01:40]} 19. g3 {[%emt 0:02:38]} Be8 {[%emt 0:00:53]} 20. b3 {[%emt 0:02:33]} b5 {[%emt 0:01:47]} 21. f3 {[%emt 0:16:50]} Nf6 {[%emt 0:03:31]} 22. Rfe1 {[%emt 0:10:38]} bxa4 {[%emt 0:08:42]} 23. bxa4 {[%emt 0:00:06]} Nd7 {[%emt 0:00:22]} 24. Nf4 {[%emt 0:02:05]} Rf5 {[%emt 0:03:56]} 25. Qe3 {[%emt 0:11:26]} Nxe5 {[%emt 0:01:47]} 26. dxe5 {[%emt 0:00:02]} Qe7 {[%emt 0:00:15]} 27. Ne2 {[%emt 0:03:11]} Rf8 {[%emt 0:00:50]} 28. Nd4 {[%emt 0:03:36]} Rc4 {[%emt 0:00:07]} 29. Rec1 {[%emt 0:01:06]} Qc5 {[%emt 0:01:26]} 30. Rxc4 {[%emt 0:04:31]} dxc4 {[%emt 0:00:17]} 31. Ra3 {[%emt 0:00:55]} Bd7 {[%emt 0:01:07]} 32. Rc3 {[%emt 0:02:36]} Rb8 {[%emt 0:00:50]} 33. Kg2 {[%emt 0:00:42]} Bxa4 {[%emt 0:03:10]} 34. g4 {[%emt 0:03:03]} Bd7 {[%emt 0:03:08]} 35. Kg3 {[%emt 0:00:16]} a5 {[%emt 0:01:18]} 36. h4 {[%emt 0:01:01]} a4 {[%emt 0:00:13]} 37. h5 {[%emt 0:00:10]} h6 {[%emt 0:00:55]} 38. Kf2 {[%emt 0:00:46]} Rb2+ {[%emt 0:03:03]} 39. Kg3 {[%emt 0:00:03]} Rb1 {[%emt 0:00:46]} 40. Nf5 {[%emt 0:01:03]} Qxe3 {[%emt 0:01:03]} 41. Nxe3 {[%emt 0:00:03]} Rb3 {[%emt 0:00:24]} 0-1

[Event "3rd Vergani Cup 2018"]
[Site "Montebelluna"]
[Date "2019.01.02"]
[Round "?"]
[White "Di Benedetto, Edoardo"]
[Black "Alok Sinha"]
[Result "1-0"]
[WhiteElo "2324"]
[BlackElo "2187"]
[PlyCount "81"]
[EventDate "2018.12.27"]
[EventType "swiss"]
[EventCountry "ITA"]
[TimeControl "5400+30"]
[WhiteClock "0:15:54"]
[BlackClock "1:11:34"]

1. d4 {[%emt 0:03:14]} d5 {[%emt 0:00:00]} 2. c4 {[%emt 0:00:07]} c6 {[%emt 0:00:00]} 3. Nf3 {[%emt 0:00:16]} Nf6 {[%emt 0:00:00]} 4. Nc3 {[%emt 0:00:15]} e6 {[%emt 0:00:00]} 5. e3 {[%emt 0:00:14]} Nbd7 {[%emt 0:00:02]} 6. Bd3 {[%emt 0:00:24]} dxc4 {[%emt 0:00:08]} 7. Bxc4 {[%emt 0:00:16]} b5 {[%emt 0:00:05]} 8. Bd3 {[%emt 0:00:19]} Bd6 {[%emt 0:00:07]} 9. Qc2 {[%emt 0:00:18]} Bb7 {[%emt 0:00:36]} 10. e4 {[%emt 0:00:05]} e5 {[%emt 0:01:03]} 11. Bg5 {[%emt 0:00:05]} Qc7 {[%emt 0:07:43]} 12. O-O-O {[%emt 0:01:18]} b4 {[%emt 0:10:58]} 13. Na4 {[%emt 0:01:07]} O-O {[%emt 0:04:57]} 14. dxe5 {[%emt 0:00:48]} Nxe5 {[%emt 0:05:27]} 15. Bxf6 {[%emt 0:01:09]} gxf6 {[%emt 0:00:13]} 16. Nxe5 {[%emt 0:05:53]} fxe5 {[%emt 0:01:39]} 17. Nc5 {[%emt 0:00:49]} Bc8 {[%emt 0:03:40]} 18. Kb1 {[%emt 0:00:51]} Rb8 {[%emt 0:03:58]} 19. Be2 {[%emt 0:01:37]} Rd8 {[%emt 0:04:29]} 20. Rd3 {[%emt 0:02:17]} Bxc5 {[%emt 0:14:59]} 21. Rxd8+ {[%emt 0:02:03]} Qxd8 {[%emt 0:00:05]} 22. Qxc5 {[%emt 0:00:05]} Qc7 {[%emt 0:02:26]} 23. Bc4 {[%emt 0:02:50]} Be6 {[%emt 0:07:23]} 24. Bxe6 {[%emt 0:00:56]} fxe6 {[%emt 0:00:06]} 25. Rc1 {[%emt 0:01:29]} Rb6 {[%emt 0:01:54]} 26. Rd1 {[%emt 0:01:34]} Rb5 {[%emt 0:04:15]} 27. Qd6 {[%emt 0:02:47]} Qxd6 {[%emt 0:02:56]} 28. Rxd6 {[%emt 0:00:03]} Rc5 {[%emt 0:00:29]} 29. Rxe6 {[%emt 0:00:37]} Kf7 {[%emt 0:01:42]} 30. Rd6 {[%emt 0:00:04]} a5 {[%emt 0:00:15]} 31. Rd7+ {[%emt 0:00:18]} Kg6 {[%emt 0:00:52]} 32. Rd2 {[%emt 0:00:23]} Rc4 {[%emt 0:05:53]} 33. f3 {[%emt 0:00:15]} c5 {[%emt 0:01:39]} 34. b3 {[%emt 0:00:46]} Rd4 {[%emt 0:00:53]} 35. Kc2 {[%emt 0:00:58]} h5 {[%emt 0:01:32]} 36. Rxd4 {[%emt 0:01:02]} cxd4 {[%emt 0:01:13]} 37. h4 {[%emt 0:00:49]} Kf6 {[%emt 0:00:17]} 38. Kd3 {[%emt 0:00:06]} Ke6 {[%emt 0:00:04]} 39. f4 {[%emt 0:00:18]} Kf6 {[%emt 0:00:04]} 40. fxe5+ {[%emt 0:00:05]} Kxe5 {[%emt 0:00:04]} 41. g3 {[%emt 0:00:06]} 1-0